bitfinex-derivatives/quotes_SOLF0:USTF0_20241021
["timestamp","ask_amount","ask_price","bid_price","bid_amount"]
[1729514604978,3.0178,165.76,165.69,3.0189]
[1729514606870,3.0178,165.76,165.7,3.0188]
[1729514607080,3.0178,165.76,165.68,1.3279]
[1729514607276,10.17651591,165.77,165.62,8.05582535]
[1729514607277,3.0183,165.73,165.62,8.05582535]
[1729514607481,3.0183,165.73,165.67,3.0192]
[1729514607676,10.17651591,165.77,165.63,5.82]
[1729514607882,3.0181,165.74,165.67,3.0192]
[1729514608291,10.17651591,165.77,165.67,3.0192]
[1729514608478,3.0181,165.74,165.67,3.0192]
[1729514608786,10.17651591,165.77,165.64,1.2954]
[1729514609478,3.0188,165.71,165.64,4.3153]
[1729514609683,8.8388,165.71,165.64,4.3153]
[1729514609885,8.8388,165.71,165.64,1.2954]
[1729514611287,8.8388,165.71,165.65,3.0197]
[1729514612991,5.82,165.71,165.64,4.3152]
[1729514613782,8.8387,165.71,165.65,3.0197]
[1729514615293,5.82,165.71,165.67,3.0192]
[1729514615586,5.82,165.71,165.64,1.2954]
[1729514615587,5.58,165.74,165.64,1.2954]
[1729514615795,5.58,165.76,165.64,1.2954]
[1729514616694,5.58,165.76,165.7,3.0187]
[1729514616996,5.58,165.76,165.67,5.58]
[1729514617293,5.58,165.76,165.68,1.2663]
[1729514618685,5.58,165.76,165.7,3.0186]
[1729514619193,5.58,165.76,165.71,3.0186]
[1729514619394,7.37411591,165.77,165.71,3.0186]
[1729514620083,4.35651591,165.77,165.64,1.2954]
[1729514620396,3.0185,165.72,165.65,3.0196]
[1729514621496,3.0185,165.72,165.61,6.9127]
[1729514621497,3.0186,165.72,165.61,1.3327]
[1729514621702,3.0186,165.72,165.65,3.0196]
[1729514623690,3.0186,165.72,165.62,5.58]
[1729514623887,8.5983,165.73,165.66,3.0195]
[1729514626596,5.58,165.73,165.62,5.58]
[1729514626798,8.5977,165.76,165.62,5.58]
[1729514626993,5.58,165.76,165.63,14.60819159]
[1729514627299,5.58,165.76,165.7,3.0187]
[1729514627699,4.35651591,165.77,165.67,5.58]
[1729514627894,4.35651591,165.77,165.72,3.0183]
[1729514628698,4.35651591,165.77,165.68,2.6125]
[1729514629900,4.35651591,165.77,165.72,3.0183]
[1729514631095,1.258,165.8,165.68,2.6125]
[1729514631096,8.5971,165.8,165.68,2.6125]
[1729514631303,8.5971,165.8,165.68,3.9576]
[1729514631504,8.5971,165.8,165.71,3.0185]
[1729514631704,8.5971,165.8,165.68,3.9576]
[1729514632013,3.0171,165.8,165.69,5.04123788]
[1729514632309,3.0171,165.8,165.68,3.9576]
[1729514632506,3.0171,165.8,165.69,5.04042659]
[1729514632807,2.6457,165.83,165.68,3.9576]
[1729514633104,5.58,165.81,165.75,3.0177]
[1729514633505,5.58,165.81,165.68,3.9576]
[1729514633705,5.6622,165.83,165.77,3.0175]
[1729514633902,8.2257,165.83,165.73,5.58]
[1729514634097,2.6457,165.83,165.73,5.58]
[1729514634300,8.2257,165.83,165.73,5.58]
[1729514634913,2.6457,165.83,165.76,3.0177]
[1729514635908,3.0166,165.82,165.76,3.0177]
[1729514636109,3.0166,165.82,165.73,5.58]
[1729514636310,3.0166,165.82,165.76,3.0177]
[1729514637004,11.2422,165.83,165.77,3.0175]
[1729514638511,3.0167,165.82,165.76,3.0177]
[1729514640707,9.8902,165.83,165.77,3.0175]
[1729514640917,6.8737,165.83,165.73,5.58]
[1729514641212,6.8737,165.83,165.74,1.2846]
[1729514641515,9.8903,165.83,165.74,1.2846]
[1729514641911,9.8903,165.83,165.76,3.0176]
[1729514642911,3.0169,165.81,165.74,1.2846]
[1729514643111,25.0037,165.83,165.69,6.9483]
[1729514643306,1.2348,165.82,165.69,1.3683]
[1729514643509,3.018,165.75,165.69,1.3683]
[1729514643709,6.06303693,165.75,165.69,1.3683]
[1729514643909,3.018,165.75,165.69,1.3683]
[1729514644414,5.96461516,165.75,165.69,1.3683]
[1729514644611,3.0186,165.72,165.65,3.0196]
[1729514644917,1.3335,165.76,165.64,5.32]
[1729514645116,4.27709608,165.76,165.64,5.32]
[1729514645316,1.3335,165.76,165.64,5.32]
[1729514645819,3.0185,165.72,165.64,5.32]
[1729514646019,3.0185,165.72,165.65,3.0197]
[1729514646719,5.32,165.73,165.64,5.32]
[1729514647210,3.0189,165.7,165.64,5.32]
[1729514647810,3.0187,165.71,165.64,8.3399]
[1729514648917,3.0187,165.71,165.64,3.0199]
[1729514652015,3.0185,165.72,165.65,3.0197]
[1729514652725,5.32,165.73,165.65,3.0197]
[1729514652922,3.0186,165.71,165.65,3.0197]
[1729514653819,3.0186,165.71,165.62,1.3698]
[1729514654019,3.0186,165.71,165.64,3.0198]
[1729514654418,5.32,165.73,165.63,3.02]
[1729514654715,5.32,165.73,165.62,1.3698]
[1729514654912,3.0191,165.69,165.62,4.39]
[1729514655518,8.3391,165.69,165.62,4.39]
[1729514655823,3.0192,165.68,165.62,4.39]
[1729514656422,5.32,165.69,165.62,4.39]
[1729514656619,8.3391,165.69,165.62,4.39]
[1729514657518,3.0193,165.68,165.62,4.39]
[1729514657718,3.00283148,165.67,165.62,4.39]
[1729514661325,8.3391,165.69,165.62,4.39]
[1729514663624,5.32,165.69,165.63,3.0199]
[1729514664020,5.32,165.69,165.62,1.3698]
[1729514665116,5.32,165.69,165.63,3.02]
[1729514665317,3.0189,165.7,165.63,3.02]
[1729514667032,3.0189,165.7,165.64,3.0199]
[1729514668936,5.32,165.71,165.62,1.3698]
[1729514669130,5.32,165.71,165.6,1.3683]
[1729514669131,5.32,165.71,165.6,6.6883]
[1729514669526,3.0193,165.68,165.62,3.0202]
[1729514669727,5.32,165.71,165.62,3.0202]
[1729514670227,3.0193,165.68,165.62,3.0202]
[1729514670927,6.5766,165.74,165.6,6.6883]
[1729514672831,6.5766,165.74,165.57,1.283]
[1729514673031,24.7066,165.74,165.53,6.5119]
[1729514673231,24.7066,165.74,165.53,12.87324262]
[1729514673432,3.0197,165.66,165.59,3.0207]
[1729514673637,5.22,165.65,165.54,5.02617319]
[1729514673935,8.26392063,165.65,165.53,12.87324262]
[1729514674534,8.26392063,165.65,165.6,3.0205]
[1729514674839,5.22,165.69,165.57,5.22]
[1729514675134,5.22,165.69,165.63,3.0201]
[1729514675631,5.22,165.69,165.62,3.0202]
[1729514675834,8.239,165.69,165.62,3.0202]
[1729514678032,5.22,165.69,165.57,5.22]
[1729514678235,5.22,165.69,165.55,1.2657]
[1729514678435,1.2815,165.68,165.55,1.2657]
[1729514678636,2.98294536,165.67,165.61,3.0204]
[1729514679030,1.2815,165.68,165.61,3.0204]
[1729514679529,1.2815,165.68,165.58,3.0208]
[1729514679530,3.0198,165.65,165.58,3.0208]
[1729514679739,2.98385193,165.65,165.55,1.2657]
[1729514679938,8.2396,165.66,165.59,3.0207]
[1729514680329,5.22,165.66,165.55,1.2657]
[1729514680533,6.02389885,165.65,165.59,3.0208]
[1729514680733,3.00409885,165.65,165.59,3.0208]
[1729514680936,5.22,165.66,165.59,3.0207]
[1729514681141,5.22,165.66,165.57,5.22]
[1729514681937,8.17774639,165.67,165.61,3.0203]
[1729514683347,8.17774639,165.67,165.57,5.22]
[1729514683539,8.17774639,165.67,165.6,3.0206]
[1729514683943,11.19724639,165.67,165.6,3.0206]
[1729514684447,3.0196,165.66,165.6,3.0206]
[1729514686045,11.19714639,165.67,165.6,3.0206]
[1729514686247,8.17774639,165.67,165.57,5.22]
[1729514686445,8.17774639,165.67,165.61,3.0203]
[1729514687852,11.19714639,165.67,165.61,3.0203]
[1729514690650,8.17774639,165.67,165.55,1.2657]
[1729514691150,6.5064,165.67,165.47,6.53104891]
[1729514691448,10.74890177,165.67,165.48,5.22]
[1729514691647,3.0201,165.63,165.56,3.0212]
[1729514691843,5.22,165.63,165.53,5.22]
[1729514692142,8.2402,165.63,165.56,3.0213]
[1729514692349,5.22,165.63,165.54,2.5261]
[1729514692757,3.0203,165.62,165.56,3.0213]
[1729514692942,5.22,165.63,165.54,2.5261]
[1729514693340,8.2402,165.63,165.56,3.0213]
[1729514693750,8.2402,165.63,165.54,2.5261]
[1729514694152,5.22,165.63,165.56,3.0213]
[1729514694848,8.2402,165.63,165.56,3.0213]
[1729514695149,5.22,165.63,165.37,2.78282048]
[1729514695347,1.3002,165.62,165.46,2.6124]
[1729514695542,1.3002,165.62,165.46,5.67948737]
[1729514695948,2.99213293,165.63,165.46,5.67948737]
[1729514695949,2.99213293,165.63,165.47,1.5120918]
[1729514696155,65.26,165.66,165.48,5.22]
[1729514696346,76.49183293,165.66,165.49,6.0453]
[1729514696647,73.47213293,165.66,165.49,6.0453]
[1729514697351,73.47213293,165.66,165.59,3.0207]
[1729514698958,73.47213293,165.66,165.58,3.021]
[1729514699454,3.0198,165.65,165.58,3.021]
[1729514700455,73.47213293,165.66,165.57,1.2787]
[1729514700852,3.0199,165.65,165.58,3.0209]
[1729514701046,73.47213293,165.66,165.57,1.2787]
[1729514702051,3.0202,165.63,165.57,1.2787]
[1729514702557,5.16,165.62,165.57,1.2787]
[1729514702760,5.16,165.62,165.57,4.2998]
[1729514702960,5.16,165.62,165.53,1.2932]
[1729514703559,8.1804,165.62,165.53,1.2932]
[1729514703758,5.16,165.62,165.55,3.0215]
[1729514704757,5.16,165.62,165.48,1.2944]
[1729514705062,1.3306,165.61,165.48,1.2944]
[1729514705454,6.4906,165.61,165.48,1.2944]
[1729514705653,2.99213293,165.66,165.48,1.2944]
[1729514705859,6.4906,165.67,165.48,1.2944]
[1729514706055,6.4906,165.67,165.49,1.51173922]
[1729514706257,9.47414837,165.67,165.5,5.01876279]
[1729514706562,3.0196,165.66,165.6,3.0206]
[1729514706750,3.0196,165.66,165.57,5.16]
[1729514707153,4.31414837,165.67,165.57,5.16]
[1729514707351,8.1894271,165.7,165.58,1.2338]
[1729514707557,1.3233,165.73,165.65,3.0196]
[1729514708158,1.3233,165.73,165.64,5.16]
[1729514708556,1.258,165.77,165.65,2.5728]
[1729514708557,5.16,165.77,165.65,2.5728]
[1729514708765,5.16,165.77,165.69,3.0189]
[1729514708955,5.16,165.77,165.69,8.1789]
[1729514709565,1.3233,165.78,165.7,3.0187]
[1729514710160,1.3233,165.78,165.69,5.16]
[1729514710463,1.3233,165.78,165.71,3.0185]
[1729514710664,1.3233,165.78,165.69,5.16]
[1729514711259,3.0179,165.76,165.68,3.019]
[1729514711462,1.3233,165.78,165.69,5.16]
[1729514711661,1.3233,165.78,165.67,5.16]
[1729514711960,1.3233,165.78,165.65,2.5728]
[1729514712156,1.3233,165.78,165.65,1.3242]
[1729514712361,1.3233,165.78,165.64,5.16]
[1729514712661,1.3233,165.78,165.61,1.2749]
[1729514712662,1.3233,165.78,165.61,2.6103]
[1729514712859,1.3233,165.78,165.61,1.3354]
[1729514713061,3.0192,165.68,165.61,1.3354]
[1729514713274,6.07636389,165.68,165.61,1.3354]
[1729514713764,6.07636389,165.68,165.64,3.0199]
[1729514714068,6.07636389,165.68,165.61,1.3354]
[1729514714971,6.07636389,165.68,165.62,3.0202]
[1729514716063,6.07636389,165.68,165.61,1.3354]
[1729514716369,6.07636389,165.68,165.62,3.0202]
[1729514716666,5.16,165.69,165.63,3.0199]
[1729514716868,3.019,165.7,165.61,1.3354]
[1729514717163,1.3233,165.78,165.61,1.3354]
[1729514717364,3.0183,165.73,165.67,3.0193]
[1729514717571,5.16,165.77,165.64,5.16]
[1729514718068,3.0181,165.74,165.68,3.0191]
[1729514718269,3.0181,165.74,165.64,5.16]
[1729514718668,3.0179,165.75,165.7,3.0188]
[1729514718866,5.16,165.76,165.65,1.3205]
[1729514719169,3.0182,165.74,165.69,3.0189]
[1729514719372,5.16,165.76,165.62,1.2887]
[1729514719670,5.16,165.76,165.65,3.0196]
[1729514719969,1.2566,165.75,165.63,5.16]
[1729514720371,3.0187,165.71,165.66,3.0194]
[1729514720573,5.98285933,165.71,165.66,3.0194]
[1729514720768,3.0187,165.71,165.66,3.0194]
[1729514721668,5.98436996,165.71,165.66,3.0194]
[1729514721868,3.0187,165.71,165.66,3.0194]
[1729514722070,6.03814841,165.71,165.66,3.0194]
[1729514722269,3.0187,165.71,165.66,3.0194]
[1729514722872,5.16,165.72,165.63,5.16]
[1729514723072,8.1785,165.72,165.68,3.0192]
[1729514724369,5.16,165.72,165.63,5.16]
[1729514724568,3.0184,165.73,165.69,3.019]
[1729514726574,3.0182,165.74,165.63,5.16]
[1729514726776,6.4166,165.75,165.63,5.16]
[1729514727371,3.0183,165.73,165.63,5.16]
[1729514727781,3.0183,165.73,165.68,3.0191]
[1729514728477,3.0182,165.74,165.69,3.0189]
[1729514728677,6.4833,165.78,165.67,5.16]
[1729514728979,1.3069,165.79,165.74,3.0179]
[1729514728980,3.0173,165.79,165.74,3.0179]
[1729514729277,3.05672742,165.8,165.72,5.16]
[1729514729485,5.16,165.81,165.72,5.16]
[1729514729778,3.0175,165.78,165.73,3.0183]
[1729514729976,5.16,165.81,165.72,5.16]
[1729514730179,1.2478,165.8,165.72,5.16]
[1729514730675,3.0177,165.77,165.72,8.1784]
[1729514730877,1.2478,165.8,165.69,5.14]
[1729514731073,1.2559,165.79,165.69,5.14]
[1729514731476,3.0177,165.76,165.7,3.0187]
[1729514731674,5.14,165.76,165.7,3.0187]
[1729514732079,3.0182,165.74,165.7,3.0187]
[1729514734778,3.0182,165.74,165.71,3.0186]
[1729514734983,3.0182,165.74,165.69,5.14]
[1729514735185,3.0182,165.74,165.7,3.0187]
[1729514735684,9.36437425,165.8,165.69,5.14]
[1729514735889,9.36437425,165.8,165.72,3.0184]
[1729514736182,3.0178,165.76,165.69,5.14]
[1729514737073,3.0178,165.76,165.72,3.0183]
[1729514737376,9.36437425,165.8,165.69,5.14]
[1729514737577,1.2478,165.8,165.73,3.0183]
[1729514737776,5.04,165.82,165.7,1.3204]
[1729514737978,3.0175,165.78,165.7,1.3204]
[1729514738175,5.04,165.82,165.71,1.3226]
[1729514738495,3.0175,165.78,165.71,1.3226]
[1729514738886,5.04,165.83,165.71,1.3226]
[1729514739276,5.04,165.83,165.7,1.3204]
[1729514739277,11.0731,165.83,165.7,5.04]
[1729514739478,3.0182,165.74,165.7,8.0588]
[1729514740088,3.0182,165.74,165.7,3.0188]
[1729514740286,3.0182,165.74,165.69,5.04]
[1729514740487,3.0182,165.74,165.71,3.0186]
[1729514740888,3.018,165.75,165.71,3.0186]
[1729514742888,3.0181,165.74,165.7,3.0187]
[1729514743083,5.04,165.79,165.69,5.04]
[1729514743285,5.04,165.79,165.68,1.2971]
[1729514743488,1.2397,165.78,165.68,9.3562]
[1729514743989,1.2397,165.78,165.68,6.3371]
[1729514744194,3.0184,165.73,165.69,3.019]
[1729514745497,1.2397,165.78,165.68,1.2971]
[1729514746394,3.0179,165.75,165.72,3.0184]
[1729514746592,1.2397,165.78,165.68,1.2971]
[1729514746797,3.0178,165.76,165.72,3.0184]
[1729514748495,5.04,165.79,165.71,5.04]
[1729514748692,1.2685,165.84,165.71,5.04]
[1729514748898,5.04,165.83,165.72,2.5982]
[1729514749086,5.04,165.83,165.76,3.0176]
[1729514749087,3.017,165.8,165.76,3.0176]
[1729514749290,3.017,165.8,165.75,5.04]
[1729514750099,3.017,165.8,165.76,3.0176]
[1729514750795,5.04,165.83,165.75,5.04]
[1729514751097,1.2685,165.84,165.75,5.04]
[1729514751896,3.0171,165.8,165.76,3.0177]
[1729514752090,1.2685,165.84,165.75,5.04]
[1729514752293,1.2685,165.84,165.76,1.2351]
[1729514752494,3.0169,165.81,165.77,3.0175]
[1729514752792,1.2685,165.84,165.77,3.0175]
[1729514753095,3.0169,165.81,165.73,3.0182]
[1729514753398,5.04,165.82,165.72,6.361]
[1729514754398,3.0171,165.8,165.75,3.0178]
[1729514755000,3.0172,165.79,165.74,3.0181]
[1729514756199,3.0172,165.79,165.72,6.361]
[1729514756200,3.0172,165.79,165.75,3.0179]
[1729514757295,5.04,165.82,165.72,6.361]
[1729514757500,3.0169,165.81,165.76,3.0177]
[1729514758193,5.04,165.82,165.77,3.0175]
[1729514759096,3.0173,165.79,165.75,3.0178]
[1729514759298,3.0173,165.79,165.73,1.3127]
[1729514761009,3.0173,165.79,165.74,3.018]
[1729514762599,5.04,165.82,165.73,1.3127]
[1729514762804,3.0163,165.84,165.79,3.0171]
[1729514762995,2.99358918,165.86,165.75,4.9]
[1729514763304,4.9,165.87,165.75,4.9]
[1729514763697,7.94226894,165.87,165.75,4.9]
[1729514763905,3.0168,165.81,165.76,3.0176]
[1729514765599,3.017,165.8,165.76,3.0176]
[1729514765804,7.94226894,165.87,165.75,4.9]
[1729514766211,3.0169,165.81,165.75,4.9]
[1729514766417,3.0169,165.81,165.76,3.0176]
[1729514767010,7.94226894,165.87,165.75,4.9]
[1729514767211,7.94226894,165.87,165.76,1.3257]
[1729514767519,3.04226894,165.87,165.76,1.3257]
[1729514767915,6.2147,165.88,165.76,1.3257]
[1729514768622,3.0162,165.85,165.8,3.017]
[1729514769018,3.0158,165.87,165.82,3.0166]
[1729514769219,1.3554,165.92,165.83,4.9]
[1729514769525,3.0156,165.88,165.83,7.9163]
[1729514769821,4.9,165.93,165.8,2.5394]
[1729514770016,1.2845,165.92,165.8,6.1446]
[1729514770218,3.0162,165.85,165.81,3.0168]
[1729514770613,3.0164,165.84,165.79,3.017]
[1729514770820,1.3532,165.88,165.76,6.2257]
[1729514771117,2.5948,165.88,165.76,6.2257]
[1729514771816,3.0162,165.85,165.78,3.0172]
[1729514772017,3.0162,165.85,165.66,6.0388]
[1729514772018,7.90687481,165.85,165.67,1.3166]
[1729514772320,3.0184,165.73,165.69,4.9]
[1729514772520,4.9,165.78,165.69,4.9]
[1729514772819,4.9,165.78,165.71,3.0186]
[1729514772820,3.0178,165.76,165.71,3.0186]
[1729514773013,4.9,165.78,165.69,4.9]
[1729514773621,3.0177,165.77,165.73,3.0182]
[1729514774721,3.0177,165.77,165.69,4.9]
[1729514774722,3.0177,165.77,165.72,3.0184]
[1729514775621,3.0177,165.77,165.73,3.0183]
[1729514776815,3.0178,165.76,165.69,3.0189]
[1729514777019,3.0178,165.76,165.64,4.9]
[1729514777020,4.31139579,165.76,165.64,4.9]
[1729514777313,1.2562,165.75,165.64,4.9]
[1729514777521,3.0186,165.71,165.66,3.0194]
[1729514777718,4.9,165.74,165.61,8.7824]
[1729514777921,4.9,165.74,165.61,3.8824]
[1729514779424,3.019,165.7,165.66,3.0195]
[1729514779831,3.0186,165.71,165.67,3.0192]
[1729514780020,3.0186,165.71,165.61,3.8824]
[1729514780021,3.0186,165.71,165.64,4.9]
[1729514780322,4.31139579,165.76,165.64,4.9]
[1729514780520,3.0182,165.74,165.64,4.9]
[1729514780716,4.9,165.75,165.64,4.9]
[1729514780916,4.9,165.75,165.69,3.0189]
[1729514780917,3.0181,165.74,165.69,3.0189]
[1729514781323,4.9,165.75,165.64,4.9]
[1729514781517,4.9,165.75,165.65,3.0197]
[1729514782123,3.0188,165.71,165.66,3.0195]
[1729514783027,3.0189,165.7,165.66,3.0195]
[1729514784017,3.0189,165.7,165.64,4.9]
[1729514784221,3.0189,165.7,165.65,3.0197]
[1729514784524,3.0187,165.71,165.64,4.9]
[1729514784827,3.0187,165.71,165.66,3.0194]
[1729514785216,3.0187,165.71,165.64,4.9]
[1729514785421,4.9,165.79,165.65,1.51100296]
[1729514785623,4.9,165.79,165.66,3.9281688]
[1729514785826,4.9,165.79,165.67,2.77040296]
[1729514786029,1.5963,165.84,165.68,9.06480296]
[1729514786228,4.9,165.83,165.69,1.51100296]
[1729514786421,4.9,165.83,165.7,1.51100296]
[1729514786724,3.0171,165.8,165.74,3.018]
[1729514787228,1.5963,165.84,165.72,4.9]
[1729514787422,1.361,165.84,165.72,4.9]
[1729514787624,6.261,165.84,165.73,1.2594]
[1729514787925,4.9,165.84,165.73,1.2594]
[1729514788328,65.24,165.88,165.73,1.2594]
[1729514788625,4.9,165.87,165.74,1.51010618]
[1729514788830,3.016,165.86,165.75,1.51010618]
[1729514789126,3.016,165.86,165.76,9.00841498]
[1729514789325,4.9,165.87,165.76,7.4984]
[1729514789523,7.9158,165.87,165.76,7.4984]
[1729514789925,7.9158,165.87,165.77,1.50987618]
[1729514789926,3.0158,165.87,165.77,1.50987618]
[1729514790225,3.0158,165.87,165.76,7.4984]
[1729514790424,3.0158,165.87,165.81,3.0167]
[1729514791023,3.0154,165.89,165.83,3.0164]
[1729514791223,4.9,165.9,165.81,1.296]
[1729514791430,4.9,165.9,165.81,4.3127]
[1729514791431,3.0159,165.87,165.81,4.3127]
[1729514792723,3.0157,165.88,165.82,3.0166]
[1729514794832,3.0155,165.89,165.83,3.0163]
[1729514795427,3.0155,165.89,165.84,3.0163]
[1729514795628,3.0155,165.89,165.81,1.296]
[1729514796230,3.0155,165.89,165.83,3.0163]
[1729514796428,4.3480693,165.96,165.81,1.296]
[1729514796631,4.86,165.95,165.81,1.296]
[1729514797130,4.84,165.94,165.81,1.296]
[1729514797330,4.84,165.94,165.82,4.84]
[1729514797536,3.0157,165.88,165.82,4.84]
[1729514797737,3.0157,165.88,165.83,3.0163]
[1729514800028,4.84,165.9,165.82,4.84]
[1729514800233,7.8554,165.9,165.85,3.0161]
[1729514800536,4.84,165.9,165.82,4.84]
[1729514800734,4.84,165.9,165.81,1.296]
[1729514800933,4.84,165.9,165.79,4.84]
[1729514801137,4.84,165.9,165.76,2.5984]
[1729514801138,4.84,165.9,165.76,7.4384]
[1729514801339,4.84,165.9,165.78,3.0176]
[1729514801340,3.017,165.82,165.78,3.0176]
[1729514801840,3.0168,165.83,165.78,3.0176]
[1729514802040,3.0168,165.83,165.76,7.4384]
[1729514802245,3.0166,165.84,165.76,7.4384]
[1729514802544,4.84,165.85,165.76,7.4384]
[1729514802734,4.84,165.85,165.81,3.017]
[1729514802930,3.0163,165.86,165.81,3.017]
[1729514803239,6.0943,165.88,165.81,3.017]
[1729514803439,3.0165,165.85,165.81,3.017]
[1729514804432,2.95173376,165.84,165.81,3.017]
[1729514804637,3.0166,165.84,165.81,3.017]
[1729514805032,3.0166,165.84,165.8,3.0172]
[1729514807037,3.017,165.82,165.78,3.0176]
[1729514807240,3.05893227,165.87,165.76,2.5984]
[1729514807434,4.84,165.86,165.76,2.5984]
[1729514807737,7.84838329,165.86,165.77,3.0178]
[1729514807934,7.84838329,165.86,165.76,2.5984]
[1729514809238,3.0167,165.84,165.79,3.0175]
[1729514811443,7.84838329,165.86,165.8,3.0172]
[1729514811637,7.84838329,165.86,165.76,2.5984]
[1729514812142,3.0167,165.84,165.79,3.0175]
[1729514813243,3.0171,165.82,165.78,7.8576]
[1729514813441,3.00838329,165.86,165.78,4.84]
[1729514814139,18.13,165.92,165.79,4.84]
[1729514814140,4.84,165.92,165.79,4.84]
[1729514814344,3.0832696,165.87,165.77,4.84]
[1729514814542,3.0832696,165.87,165.79,3.0173]
[1729514814736,4.84,165.86,165.79,3.0173]
[1729514815449,3.0169,165.83,165.79,3.0173]
[1729514815842,3.05367794,165.85,165.79,3.0173]
[1729514816238,3.0168,165.83,165.79,3.0173]
[1729514818247,3.017,165.82,165.79,3.0173]
[1729514818445,3.017,165.82,165.77,4.84]
[1729514818446,4.84,165.86,165.76,3.0179]
[1729514818647,18.13,165.89,165.73,4.86]
[1729514818648,1.296,165.84,165.73,4.86]
[1729514818844,4.86,165.83,165.73,4.86]
[1729514819044,3.0176,165.79,165.75,3.0181]
[1729514819246,4.86,165.83,165.72,4.86]
[1729514820046,3.0176,165.79,165.75,3.0181]
[1729514820945,3.0176,165.79,165.76,3.018]
[1729514821554,3.0176,165.79,165.75,3.0181]
[1729514823353,4.86,165.83,165.72,4.86]
[1729514823752,3.0168,165.83,165.79,3.0173]
[1729514823949,3.08628915,165.86,165.76,4.76]
[1729514823950,7.84628915,165.86,165.76,4.76]
[1729514824157,4.76,165.86,165.77,2.6539]
[1729514824455,3.0168,165.83,165.79,3.0173]
[1729514824846,7.71474596,165.86,165.79,3.0173]
[1729514825044,7.71474596,165.86,165.7,6.038]
[1729514825355,7.71474596,165.86,165.71,7.426]
[1729514825751,3.017,165.82,165.76,3.0179]
[1729514826056,3.017,165.82,165.71,7.426]
[1729514826057,4.76,165.82,165.71,7.426]
[1729514826657,3.0174,165.8,165.71,7.426]
[1729514827750,3.0174,165.8,165.75,3.0181]
[1729514827951,7.7771,165.82,165.71,7.426]
[1729514828155,4.76,165.82,165.71,7.426]
[1729514828549,4.76,165.85,165.71,7.426]
[1729514829050,3.0171,165.82,165.71,7.426]
[1729514829654,3.0171,165.82,165.77,3.0177]
[1729514830955,7.78421255,165.85,165.77,3.0178]
[1729514831658,7.78421255,165.85,165.76,4.76]
[1729514831859,3.017,165.82,165.78,3.0176]
[1729514832160,7.78421255,165.85,165.76,4.76]
[1729514832353,3.017,165.82,165.76,4.76]
[1729514833057,3.017,165.82,165.78,3.0176]
[1729514833460,7.78421255,165.85,165.78,3.0176]
[1729514833652,3.0171,165.81,165.78,3.0176]
[1729514834454,3.0171,165.81,165.77,3.0178]
[1729514836860,7.78421255,165.85,165.76,4.76]
[1729514837058,7.78421255,165.85,165.71,2.666]
[1729514837368,25.91421255,165.85,165.71,2.666]
[1729514837771,6.0334,165.84,165.71,2.666]
[1729514837967,3.0186,165.74,165.71,1.3483]
[1729514838267,3.0186,165.74,165.7,3.019]
[1729514839168,3.0186,165.74,165.68,4.76]
[1729514839662,3.0186,165.74,165.7,3.019]
[1729514840069,3.0183,165.75,165.68,4.76]